[Event "Live Chess"]
[Site "Chess.com"]
[Date "2023.05.20"]
[Round "-"]
[White "FlyingChessKestrel13"]
[Black "Prijmak"]
[Result "1-0"]
[WhiteElo "2138"]
[BlackElo "985"]
[TimeControl "300"]
[EndTime "9:45:38 PDT"]
[Termination "FlyingChessKestrel13 won by checkmate"]

1. e4 {[%clk 0:04:58.2]} 1... e5 {[%clk 0:04:55.4]} 2. Nf3 {[%clk 0:04:55.6]}
2... Nc6 {[%clk 0:04:49.8]} 3. Bb5 {[%clk 0:04:54.2]} 3... d6 {[%clk 0:04:47.5]}
4. d4 {[%clk 0:04:52.3]} 4... a6 {[%clk 0:04:44.5]} 5. Bxc6+ {[%clk 0:04:49.3]}
5... bxc6 {[%clk 0:04:41.4]} 6. dxe5 {[%clk 0:04:47.8]} 6... Bg4 {[%clk
0:04:35.3]} 7. exd6 {[%clk 0:04:46.6]} 7... cxd6 {[%clk 0:04:32.1]} 8. O-O
{[%clk 0:04:44.6]} 8... Nf6 {[%clk 0:04:30]} 9. Nc3 {[%clk 0:04:42.9]} 9... Be7
{[%clk 0:04:24.9]} 10. Bf4 {[%clk 0:04:40.3]} 10... O-O {[%clk 0:04:21.6]} 11.
h3 {[%clk 0:04:38.4]} 11... Be6 {[%clk 0:04:15.2]} 12. Qd2 {[%clk 0:04:33.8]}
12... Rb8 {[%clk 0:04:11.5]} 13. b3 {[%clk 0:04:30.7]} 13... c5 {[%clk
0:04:05.8]} 14. Rad1 {[%clk 0:04:28.4]} 14... Ne8 {[%clk 0:03:54.2]} 15. Nd5
{[%clk 0:04:24.8]} 15... Bxd5 {[%clk 0:03:50.2]} 16. exd5 {[%clk 0:04:23.9]}
16... Bf6 {[%clk 0:03:47.9]} 17. c4 {[%clk 0:04:21.7]} 17... Ra8 {[%clk
0:03:42.5]} 18. Rfe1 {[%clk 0:04:19.5]} 18... Nc7 {[%clk 0:03:38.9]} 19. Bg5
{[%clk 0:04:15.5]} 19... Bxg5 {[%clk 0:03:36.2]} 20. Nxg5 {[%clk 0:04:13.5]}
20... h6 {[%clk 0:03:31.6]} 21. Ne4 {[%clk 0:04:11.2]} 21... a5 {[%clk 0:03:23]}
22. Qf4 {[%clk 0:04:08.6]} 22... Ne8 {[%clk 0:03:16.2]} 23. Ng3 {[%clk
0:04:06.8]} 23... a4 {[%clk 0:03:14.1]} 24. Nf5 {[%clk 0:04:05.4]} 24... axb3
{[%clk 0:03:08.6]} 25. axb3 {[%clk 0:04:04.1]} 25... Ra3 {[%clk 0:03:00.9]} 26.
Re3 {[%clk 0:04:01.7]} 26... Kh7 {[%clk 0:02:47.9]} 27. Rde1 {[%clk 0:03:50.5]}
27... Nf6 {[%clk 0:02:36]} 28. Qxd6 {[%clk 0:03:40.2]} 28... Qxd6 {[%clk
0:02:29]} 29. Nxd6 {[%clk 0:03:39.1]} 29... Ra6 {[%clk 0:02:21.3]} 30. Ne4
{[%clk 0:03:35.2]} 30... Nd7 {[%clk 0:02:15.2]} 31. Nc3 {[%clk 0:03:25.8]} 31...
Rfa8 {[%clk 0:02:11.6]} 32. Re7 {[%clk 0:03:23.2]} 32... R6a7 {[%clk 0:02:08.3]}
33. Rxf7 {[%clk 0:03:21.7]} 33... Nf6 {[%clk 0:01:59.8]} 34. Rxa7 {[%clk
0:03:19.1]} 34... Rxa7 {[%clk 0:01:58.7]} 35. Ne4 {[%clk 0:03:16]} 35... Ra5
{[%clk 0:01:54.9]} 36. Nxf6+ {[%clk 0:03:13.7]} 36... gxf6 {[%clk 0:01:52.9]}
37. Rb1 {[%clk 0:03:12.5]} 37... Kg7 {[%clk 0:01:47.9]} 38. b4 {[%clk
0:03:11.5]} 38... cxb4 {[%clk 0:01:45.5]} 39. Rxb4 {[%clk 0:03:10.9]} 39... Ra1+
{[%clk 0:01:43.8]} 40. Kh2 {[%clk 0:03:09.9]} 40... Ra2 {[%clk 0:01:41.9]} 41.
Kg3 {[%clk 0:03:09]} 41... Rd2 {[%clk 0:01:38.7]} 42. Rb7+ {[%clk 0:03:01.8]}
42... Kg8 {[%clk 0:01:34.3]} 43. Kf3 {[%clk 0:03:00.7]} 43... Rd4 {[%clk
0:01:31.5]} 44. Rc7 {[%clk 0:02:55.2]} 44... Kf8 {[%clk 0:01:28.6]} 45. Ke3
{[%clk 0:02:54.5]} 45... Rd1 {[%clk 0:01:26.2]} 46. Kf4 {[%clk 0:02:52.2]} 46...
Rd4+ {[%clk 0:01:24.4]} 47. Kf5 {[%clk 0:02:50.9]} 47... Rd2 {[%clk 0:01:22.2]}
48. f3 {[%clk 0:02:49.3]} 48... Rxg2 {[%clk 0:01:19.6]} 49. Kxf6 {[%clk
0:02:48.6]} 49... Rf2 {[%clk 0:01:15.2]} 50. Rc8# {[%clk 0:02:47.2]} 1-0

[Event "Live Chess"]
[Site "Chess.com"]
[Date "2023.05.20"]
[Round "-"]
[White "apl_trainer"]
[Black "guptarayan"]
[Result "1-0"]
[WhiteElo "1567"]
[BlackElo "587"]
[TimeControl "300"]
[EndTime "9:45:56 PDT"]
[Termination "apl_trainer won by checkmate"]

1. d4 {[%clk 0:04:58.1]} 1... d5 {[%clk 0:04:58.4]} 2. c4 {[%clk 0:04:56.3]}
2... c6 {[%clk 0:04:53.5]} 3. Nf3 {[%clk 0:04:54.2]} 3... Nf6 {[%clk 0:04:47]}
4. Nc3 {[%clk 0:04:52.7]} 4... Nbd7 {[%clk 0:04:40.9]} 5. Bg5 {[%clk 0:04:45.4]}
5... e6 {[%clk 0:04:39.1]} 6. e3 {[%clk 0:04:43.1]} 6... Be7 {[%clk 0:04:36.7]}
7. cxd5 {[%clk 0:04:38.4]} 7... cxd5 {[%clk 0:04:34.8]} 8. Bd3 {[%clk
0:04:34.7]} 8... Nf8 {[%clk 0:04:30]} 9. Ne5 {[%clk 0:04:25.8]} 9... Ne4 {[%clk
0:04:09]} 10. Bxe7 {[%clk 0:04:13]} 10... Qxe7 {[%clk 0:03:59.6]} 11. Nxe4
{[%clk 0:04:10.4]} 11... dxe4 {[%clk 0:03:57.2]} 12. Bxe4 {[%clk 0:04:09.2]}
12... Qb4+ {[%clk 0:03:51.9]} 13. Qd2 {[%clk 0:04:07.8]} 13... Qxd2+ {[%clk
0:03:48.4]} 14. Kxd2 {[%clk 0:04:06.7]} 14... Ng6 {[%clk 0:03:46.3]} 15. f4
{[%clk 0:03:54.7]} 15... Nxe5 {[%clk 0:03:44.4]} 16. fxe5 {[%clk 0:03:45.3]}
16... Bd7 {[%clk 0:03:38.7]} 17. Rac1 {[%clk 0:03:41.1]} 17... Bc6 {[%clk
0:03:33.6]} 18. Rxc6 {[%clk 0:03:32]} 18... bxc6 {[%clk 0:03:31.6]} 19. Bxc6+
{[%clk 0:03:30.8]} 19... Ke7 {[%clk 0:03:29.2]} 20. Bxa8 {[%clk 0:03:29.6]}
20... Rxa8 {[%clk 0:03:27.6]} 21. Rc1 {[%clk 0:03:27.8]} 21... Rb8 {[%clk
0:03:26]} 22. Rc7+ {[%clk 0:03:20.4]} 22... Ke8 {[%clk 0:03:23.1]} 23. Kc2
{[%clk 0:03:08.8]} 23... g5 {[%clk 0:03:05.7]} 24. Rxa7 {[%clk 0:03:03]} 24...
h5 {[%clk 0:03:01.6]} 25. a3 {[%clk 0:02:53.3]} 25... g4 {[%clk 0:02:58.4]} 26.
b4 {[%clk 0:02:46.2]} 26... f5 {[%clk 0:02:56.4]} 27. exf6 {[%clk 0:02:43.4]}
27... h4 {[%clk 0:02:52.7]} 28. Kd3 {[%clk 0:02:37.7]} 28... h3 {[%clk
0:02:40.3]} 29. gxh3 {[%clk 0:02:35.1]} 29... gxh3 {[%clk 0:02:39]} 30. Rh7
{[%clk 0:02:32.4]} 30... Ra8 {[%clk 0:02:34.1]} 31. Rh8+ {[%clk 0:02:30.1]}
31... Kf7 {[%clk 0:02:29.8]} 32. Rxa8 {[%clk 0:02:28.1]} 32... Kxf6 {[%clk
0:02:29]} 33. Ke4 {[%clk 0:02:25.8]} 33... Kg5 {[%clk 0:02:26.4]} 34. Rg8+
{[%clk 0:02:22.9]} 34... Kh4 {[%clk 0:02:24.3]} 35. Kf4 {[%clk 0:02:17.2]} 35...
e5+ {[%clk 0:02:21.3]} 36. dxe5 {[%clk 0:02:14.9]} 36... Kh5 {[%clk 0:02:19.4]}
37. Rg3 {[%clk 0:02:12.7]} 37... Kh4 {[%clk 0:02:17.7]} 38. Kf5 {[%clk
0:02:10.8]} 38... Kh5 {[%clk 0:02:15.9]} 39. Rxh3# {[%clk 0:02:09.5]} 1-0

[Event "Live Chess"]
[Site "Chess.com"]
[Date "2023.05.20"]
[Round "-"]
[White "TobyQuaite"]
[Black "Conradical12"]
[Result "1-0"]
[WhiteElo "1703"]
[BlackElo "1515"]
[TimeControl "300"]
[EndTime "9:46:07 PDT"]
[Termination "TobyQuaite won by checkmate"]

1. e4 {[%clk 0:04:59.3]} 1... e5 {[%clk 0:04:59.1]} 2. Nf3 {[%clk 0:04:58.3]}
2... Nc6 {[%clk 0:04:58.7]} 3. d4 {[%clk 0:04:57.4]} 3... Nf6 {[%clk 0:04:58.3]}
4. d5 {[%clk 0:04:52.2]} 4... Nxe4 {[%clk 0:04:49.3]} 5. dxc6 {[%clk 0:04:50]}
5... Bc5 {[%clk 0:04:48.9]} 6. cxd7+ {[%clk 0:04:44.1]} 6... Bxd7 {[%clk
0:04:47.5]} 7. Be3 {[%clk 0:04:43.6]} 7... Bxe3 {[%clk 0:04:45.7]} 8. fxe3
{[%clk 0:04:43.5]} 8... O-O {[%clk 0:04:44.5]} 9. Bd3 {[%clk 0:04:41.4]} 9... f5
{[%clk 0:04:40.9]} 10. O-O {[%clk 0:04:36.5]} 10... Qe7 {[%clk 0:04:25.5]} 11.
Nbd2 {[%clk 0:04:22.3]} 11... Bc6 {[%clk 0:04:20.3]} 12. Bxe4 {[%clk 0:04:15.9]}
12... fxe4 {[%clk 0:04:17.4]} 13. Ne1 {[%clk 0:04:11.4]} 13... Rad8 {[%clk
0:04:11.5]} 14. Qe2 {[%clk 0:04:07.1]} 14... Rxf1+ {[%clk 0:04:00.2]} 15. Nxf1
{[%clk 0:04:07]} 15... a6 {[%clk 0:03:56]} 16. Rd1 {[%clk 0:04:04.9]} 16... Rf8
{[%clk 0:03:53.9]} 17. c4 {[%clk 0:03:48]} 17... b5 {[%clk 0:03:50.7]} 18. b3
{[%clk 0:03:44.8]} 18... bxc4 {[%clk 0:03:49.5]} 19. bxc4 {[%clk 0:03:44.7]}
19... Ba4 {[%clk 0:03:44.5]} 20. Rb1 {[%clk 0:03:34.2]} 20... Qa3 {[%clk
0:03:18.8]} 21. Ng3 {[%clk 0:03:27.5]} 21... Bc6 {[%clk 0:02:58]} 22. Rb3 {[%clk
0:03:12.5]} 22... Qc5 {[%clk 0:02:55.4]} 23. Nc2 {[%clk 0:02:44]} 23... a5
{[%clk 0:02:54.1]} 24. Na3 {[%clk 0:02:12.9]} 24... Ba4 {[%clk 0:02:50.3]} 25.
Rc3 {[%clk 0:02:10.3]} 25... Qb4 {[%clk 0:02:47.3]} 26. Qe1 {[%clk 0:01:33.7]}
26... Bc6 {[%clk 0:02:40.8]} 27. Nb5 {[%clk 0:01:31.3]} 27... Bxb5 {[%clk
0:02:34]} 28. cxb5 {[%clk 0:01:31.2]} 28... Rb8 {[%clk 0:02:24.6]} 29. Rc1
{[%clk 0:01:24.4]} 29... Qe7 {[%clk 0:01:40.5]} 30. Qxa5 {[%clk 0:01:10.4]}
30... Qd8 {[%clk 0:01:33.9]} 31. Qxc7 {[%clk 0:01:06.2]} 31... Qxc7 {[%clk
0:01:28.9]} 32. Rxc7 {[%clk 0:01:06.1]} 32... Rxb5 {[%clk 0:01:27.9]} 33. Nxe4
{[%clk 0:01:05.1]} 33... Rb2 {[%clk 0:01:26.9]} 34. Ng5 {[%clk 0:00:59]} 34...
h6 {[%clk 0:01:22.8]} 35. Rc8# {[%clk 0:00:57.5]} 1-0

[Event "Live Chess"]
[Site "Chess.com"]
[Date "2023.05.20"]
[Round "-"]
[White "LiamBellwood"]
[Black "KGreenGator"]
[Result "0-1"]
[WhiteElo "2097"]
[BlackElo "1781"]
[TimeControl "300"]
[EndTime "9:46:09 PDT"]
[Termination "KGreenGator won on time"]

1. d4 {[%clk 0:04:59.6]} 1... Nf6 {[%clk 0:04:58.2]} 2. Nc3 {[%clk 0:04:59.3]}
2... d5 {[%clk 0:04:57.3]} 3. Bf4 {[%clk 0:04:59]} 3... a6 {[%clk 0:04:55.5]} 4.
e3 {[%clk 0:04:57.8]} 4... e6 {[%clk 0:04:54.2]} 5. Qf3 {[%clk 0:04:56.4]} 5...
Nc6 {[%clk 0:04:52.8]} 6. Nge2 {[%clk 0:04:54.4]} 6... Bd6 {[%clk 0:04:51.6]} 7.
g4 {[%clk 0:04:53.2]} 7... h6 {[%clk 0:04:49.4]} 8. h4 {[%clk 0:04:51.1]} 8...
O-O {[%clk 0:04:44.5]} 9. g5 {[%clk 0:04:45.4]} 9... Bxf4 {[%clk 0:04:40.6]} 10.
Nxf4 {[%clk 0:04:26.6]} 10... Ne4 {[%clk 0:04:32.8]} 11. Nxe4 {[%clk 0:03:59.1]}
11... dxe4 {[%clk 0:04:31.2]} 12. Qxe4 {[%clk 0:03:59]} 12... f5 {[%clk
0:04:27]} 13. Qf3 {[%clk 0:03:57.6]} 13... hxg5 {[%clk 0:04:22.6]} 14. hxg5
{[%clk 0:03:54.6]} 14... Qxg5 {[%clk 0:04:21.6]} 15. O-O-O {[%clk 0:03:42.6]}
15... Qg4 {[%clk 0:04:13.7]} 16. Qxg4 {[%clk 0:03:22.3]} 16... fxg4 {[%clk
0:04:09.8]} 17. Bc4 {[%clk 0:03:06.2]} 17... Rf6 {[%clk 0:04:05.4]} 18. Rdg1
{[%clk 0:03:01.5]} 18... b5 {[%clk 0:04:00.3]} 19. Bb3 {[%clk 0:03:00.2]} 19...
Na5 {[%clk 0:03:58.1]} 20. Nd3 {[%clk 0:02:30.6]} 20... Nxb3+ {[%clk 0:03:56.4]}
21. axb3 {[%clk 0:02:30.5]} 21... Bb7 {[%clk 0:03:53.7]} 22. Rh4 {[%clk
0:02:24.8]} 22... Bf3 {[%clk 0:03:51.6]} 23. Ne5 {[%clk 0:02:23.6]} 23... Kf8
{[%clk 0:03:42]} 24. Nd7+ {[%clk 0:02:20.7]} 24... Ke7 {[%clk 0:03:40.9]} 25.
Nxf6 {[%clk 0:02:20.6]} 25... Kxf6 {[%clk 0:03:40.3]} 26. e4 {[%clk 0:02:14.7]}
26... g5 {[%clk 0:03:36.4]} 27. Rh6+ {[%clk 0:02:11.4]} 27... Ke7 {[%clk
0:03:34.1]} 28. Kd2 {[%clk 0:02:06.2]} 28... Rf8 {[%clk 0:03:29.4]} 29. Ke3
{[%clk 0:02:04.9]} 29... Rf4 {[%clk 0:03:26.2]} 30. e5 {[%clk 0:02:01.2]} 30...
Re4+ {[%clk 0:03:24.7]} 31. Kd3 {[%clk 0:01:58.9]} 31... Re2 {[%clk 0:03:22.9]}
32. Rh7+ {[%clk 0:01:52.2]} 32... Kd8 {[%clk 0:03:20.8]} 33. Rg7 {[%clk
0:01:40.6]} 33... Rxf2 {[%clk 0:03:15.6]} 34. Rxg5 {[%clk 0:01:39.8]} 34... Kd7
{[%clk 0:03:08.7]} 35. R5xg4 {[%clk 0:01:35.2]} 35... Bxg4 {[%clk 0:03:06.7]}
36. Rxg4 {[%clk 0:01:35.1]} 36... Rf3+ {[%clk 0:03:04.3]} 37. Ke2 {[%clk
0:01:30.9]} 37... Rh3 {[%clk 0:03:03.3]} 38. Rg7+ {[%clk 0:01:24.9]} 38... Kc6
{[%clk 0:03:01.6]} 39. Re7 {[%clk 0:01:21.5]} 39... Kd5 {[%clk 0:02:59.3]} 40.
c3 {[%clk 0:01:12.5]} 40... Rh2+ {[%clk 0:02:53.5]} 41. Kd3 {[%clk 0:01:11.9]}
41... Rh3+ {[%clk 0:02:51.4]} 42. Kd2 {[%clk 0:01:11.4]} 42... Rh2+ {[%clk
0:02:50.7]} 43. Kd3 {[%clk 0:01:10.8]} 43... Rh3+ {[%clk 0:02:49.7]} 44. Ke2
{[%clk 0:01:01.9]} 44... Rh2+ {[%clk 0:02:48.5]} 45. Kf3 {[%clk 0:01:00.7]}
45... Rh3+ {[%clk 0:02:46.8]} 46. Kg2 {[%clk 0:00:57.9]} 46... Rd3 {[%clk
0:02:45.3]} 47. Rxc7 {[%clk 0:00:54.1]} 47... Rd2+ {[%clk 0:02:43.9]} 48. Kf3
{[%clk 0:00:52.6]} 48... Rd3+ {[%clk 0:02:43.1]} 49. Ke2 {[%clk 0:00:51.2]}
49... Rh3 {[%clk 0:02:41.8]} 50. Rc5+ {[%clk 0:00:50.5]} 50... Ke4 {[%clk
0:02:40.3]} 51. Rc6 {[%clk 0:00:49.3]} 51... Rh2+ {[%clk 0:02:39.4]} 52. Kf1
{[%clk 0:00:45.2]} 52... Kf3 {[%clk 0:02:36.7]} 53. Ke1 {[%clk 0:00:44.6]} 53...
Ke3 {[%clk 0:02:33.9]} 54. Kd1 {[%clk 0:00:42.8]} 54... Kd3 {[%clk 0:02:31.6]}
55. Ke1 {[%clk 0:00:41.3]} 55... Ke3 {[%clk 0:02:31]} 56. Kf1 {[%clk 0:00:40.2]}
56... Kf3 {[%clk 0:02:30.2]} 57. Kg1 {[%clk 0:00:39.6]} 57... Rxb2 {[%clk
0:02:28.5]} 58. Rxe6 {[%clk 0:00:38.5]} 58... Rxb3 {[%clk 0:02:27]} 59. Rf6+
{[%clk 0:00:35.2]} 59... Kg3 {[%clk 0:02:25.5]} 60. Rg6+ {[%clk 0:00:32.3]}
60... Kh3 {[%clk 0:02:24.5]} 61. e6 {[%clk 0:00:30.4]} 61... Rxc3 {[%clk
0:02:23.2]} 62. e7 {[%clk 0:00:26.9]} 62... Re3 {[%clk 0:02:22.4]} 63. Rg7
{[%clk 0:00:21.3]} 63... b4 {[%clk 0:02:21.2]} 64. Rh7+ {[%clk 0:00:16.8]} 64...
Kg4 {[%clk 0:02:19.5]} 65. d5 {[%clk 0:00:14.4]} 65... b3 {[%clk 0:02:16.4]} 66.
Rg7+ {[%clk 0:00:09.8]} 66... Kf5 {[%clk 0:02:14.3]} 67. Rf7+ {[%clk 0:00:07.9]}
67... Kg6 {[%clk 0:02:12.4]} 68. Rf2 {[%clk 0:00:05.1]} 68... Rxe7 {[%clk
0:02:10.4]} 69. Rb2 {[%clk 0:00:05]} 69... Rd7 {[%clk 0:02:09.5]} 70. Rxb3
{[%clk 0:00:04.4]} 70... Rxd5 {[%clk 0:02:08.4]} 71. Rb6+ {[%clk 0:00:04.1]}
71... Kf5 {[%clk 0:02:07.9]} 72. Rxa6 {[%clk 0:00:03.2]} 72... Ke4 {[%clk
0:02:06.6]} 73. Ra4+ {[%clk 0:00:02.1]} 73... Ke3 {[%clk 0:02:05.6]} 74. Ra3+
{[%clk 0:00:01.1]} 74... Kd2 {[%clk 0:02:04.8]} 75. Ra4 {[%clk 0:00:01]} 75...
Kc3 {[%clk 0:02:03.4]} 76. Kg2 {[%clk 0:00:00.9]} 76... Kb3 {[%clk 0:02:02.6]}
77. Ra7 {[%clk 0:00:00.8]} 77... Rd2+ {[%clk 0:02:01.6]} 78. Kf3 {[%clk
0:00:00.5]} 78... Kc3 {[%clk 0:02:00.8]} 79. Ke4 {[%clk 0:00:00.4]} 79... Rb2
{[%clk 0:01:59.3]} 80. Ke5 {[%clk 0:00:00.1]} 80... Kd2 {[%clk 0:01:58.7]} 0-1

[Event "Live Chess"]
[Site "Chess.com"]
[Date "2023.05.20"]
[Round "-"]
[White "Crowded_House"]
[Black "aliciabutteriss"]
[Result "1-0"]
[WhiteElo "1692"]
[BlackElo "511"]
[TimeControl "300"]
[EndTime "9:46:10 PDT"]
[Termination "Crowded_House won by resignation"]

1. d4 {[%clk 0:04:55.2]} 1... d5 {[%clk 0:04:58.2]} 2. Bg5 {[%clk 0:04:54.1]}
2... f6 {[%clk 0:04:50.3]} 3. Bh4 {[%clk 0:04:52.7]} 3... Nc6 {[%clk 0:04:41.4]}
4. e3 {[%clk 0:04:48.6]} 4... Bf5 {[%clk 0:04:38.9]} 5. c3 {[%clk 0:04:44]} 5...
e5 {[%clk 0:04:36.5]} 6. dxe5 {[%clk 0:04:37.4]} 6... Nxe5 {[%clk 0:04:35.1]} 7.
Nf3 {[%clk 0:04:29.3]} 7... Nxf3+ {[%clk 0:04:26.9]} 8. Qxf3 {[%clk 0:04:27.6]}
8... Qd7 {[%clk 0:04:18.2]} 9. Nd2 {[%clk 0:04:10.7]} 9... O-O-O {[%clk
0:04:14.8]} 10. Be2 {[%clk 0:04:05.4]} 10... Bc5 {[%clk 0:04:03.5]} 11. Nb3
{[%clk 0:04:01]} 11... Qb5 {[%clk 0:03:48.5]} 12. Bxb5 {[%clk 0:03:56.2]} 1-0

[Event "Live Chess"]
[Site "Chess.com"]
[Date "2023.05.20"]
[Round "-"]
[White "noobsmoker24"]
[Black "Davidagye"]
[Result "0-1"]
[WhiteElo "1373"]
[BlackElo "1647"]
[TimeControl "300"]
[EndTime "9:46:12 PDT"]
[Termination "Davidagye won on time"]

1. e4 {[%clk 0:04:59.8]} 1... e5 {[%clk 0:04:58.4]} 2. Nf3 {[%clk 0:04:58.7]}
2... Nc6 {[%clk 0:04:57.2]} 3. Bc4 {[%clk 0:04:57.7]} 3... Nf6 {[%clk
0:04:56.3]} 4. d3 {[%clk 0:04:57]} 4... Bc5 {[%clk 0:04:53.9]} 5. c3 {[%clk
0:04:56.1]} 5... O-O {[%clk 0:04:52.8]} 6. Nbd2 {[%clk 0:04:54.2]} 6... h6
{[%clk 0:04:52]} 7. Bb3 {[%clk 0:04:53.1]} 7... d5 {[%clk 0:04:49.7]} 8. exd5
{[%clk 0:04:50.3]} 8... Nxd5 {[%clk 0:04:48.8]} 9. O-O {[%clk 0:04:47.5]} 9...
Nf4 {[%clk 0:04:47.3]} 10. Ne4 {[%clk 0:04:26.7]} 10... Bb6 {[%clk 0:04:41.4]}
11. Bc2 {[%clk 0:04:20.2]} 11... Bg4 {[%clk 0:04:37.3]} 12. h3 {[%clk
0:04:14.6]} 12... Bh5 {[%clk 0:04:26.2]} 13. Ng3 {[%clk 0:04:13.7]} 13... Bg6
{[%clk 0:04:17.3]} 14. d4 {[%clk 0:03:56]} 14... Nh5 {[%clk 0:03:49.3]} 15. Bxg6
{[%clk 0:03:38.5]} 15... fxg6 {[%clk 0:03:29]} 16. Nxh5 {[%clk 0:03:35.9]} 16...
gxh5 {[%clk 0:03:27.5]} 17. Be3 {[%clk 0:03:01.3]} 17... e4 {[%clk 0:03:21.3]}
18. Ne5 {[%clk 0:02:58.5]} 18... Nxe5 {[%clk 0:03:17.9]} 19. dxe5 {[%clk
0:02:57.7]} 19... Qh4 {[%clk 0:03:11.5]} 20. Bxb6 {[%clk 0:02:39.2]} 20... axb6
{[%clk 0:02:58.5]} 21. Qd5+ {[%clk 0:02:38.1]} 21... Kh8 {[%clk 0:02:55.6]} 22.
Qxb7 {[%clk 0:02:24.2]} 22... Qe7 {[%clk 0:02:47.4]} 23. Qxe4 {[%clk 0:02:22.3]}
23... Rae8 {[%clk 0:02:45.3]} 24. Rfe1 {[%clk 0:02:15.8]} 24... g5 {[%clk
0:02:42.9]} 25. Qg6 {[%clk 0:02:10.7]} 25... Qg7 {[%clk 0:02:31.5]} 26. Qxg7+
{[%clk 0:02:03.6]} 26... Kxg7 {[%clk 0:02:30.2]} 27. Rad1 {[%clk 0:02:03.5]}
27... Re7 {[%clk 0:02:27.1]} 28. b4 {[%clk 0:01:53.9]} 28... Ra8 {[%clk
0:02:24.3]} 29. Rd2 {[%clk 0:01:49.7]} 29... Ra3 {[%clk 0:02:23.3]} 30. Re3
{[%clk 0:01:45.1]} 30... Kg6 {[%clk 0:02:11.5]} 31. Kf1 {[%clk 0:01:44]} 31...
Kf5 {[%clk 0:02:08.1]} 32. Rde2 {[%clk 0:01:39.9]} 32... c5 {[%clk 0:02:01.9]}
33. bxc5 {[%clk 0:01:38.6]} 33... bxc5 {[%clk 0:02:00.8]} 34. e6 {[%clk
0:01:37.9]} 34... Ra6 {[%clk 0:01:57.5]} 35. Re5+ {[%clk 0:01:35.6]} 35... Kf6
{[%clk 0:01:52.6]} 36. Rxc5 {[%clk 0:01:34.5]} 36... Rexe6 {[%clk 0:01:51.2]}
37. Rxe6+ {[%clk 0:01:33.8]} 37... Kxe6 {[%clk 0:01:50.7]} 38. g3 {[%clk
0:01:25]} 38... Kd6 {[%clk 0:01:47]} 39. Rf5 {[%clk 0:01:22.5]} 39... Ke6 {[%clk
0:01:46.2]} 40. Rb5 {[%clk 0:01:18.9]} 40... Kf7 {[%clk 0:01:38.1]} 41. Rb2
{[%clk 0:01:17.1]} 41... Ra3 {[%clk 0:01:35.6]} 42. Rc2 {[%clk 0:01:14.7]} 42...
Ke6 {[%clk 0:01:34.8]} 43. c4 {[%clk 0:01:13.3]} 43... Kd6 {[%clk 0:01:33.2]}
44. Ke2 {[%clk 0:01:12.5]} 44... Kc5 {[%clk 0:01:32]} 45. Kf1 {[%clk 0:01:02.5]}
45... g4 {[%clk 0:01:24.8]} 46. hxg4 {[%clk 0:01:00.8]} 46... hxg4 {[%clk
0:01:24.1]} 47. Ke2 {[%clk 0:00:52]} 47... h5 {[%clk 0:01:18.4]} 48. Kd2 {[%clk
0:00:48.1]} 48... Rf3 {[%clk 0:01:14.6]} 49. Ke2 {[%clk 0:00:46.8]} 49... Ra3
{[%clk 0:01:12.6]} 50. Rb2 {[%clk 0:00:40.7]} 50... Kxc4 {[%clk 0:01:10.4]} 51.
Rc2+ {[%clk 0:00:40.2]} 51... Kd5 {[%clk 0:01:09.2]} 52. Rd2+ {[%clk 0:00:39.5]}
52... Ke5 {[%clk 0:01:08.2]} 53. Rb2 {[%clk 0:00:35.3]} 53... Ra5 {[%clk
0:01:06.2]} 54. Kd3 {[%clk 0:00:28.8]} 54... Kf5 {[%clk 0:01:03.9]} 55. Kc4
{[%clk 0:00:26.9]} 55... Kg5 {[%clk 0:01:01.7]} 56. Kb4 {[%clk 0:00:24.6]} 56...
Ra8 {[%clk 0:00:57.3]} 57. a4 {[%clk 0:00:22.8]} 57... h4 {[%clk 0:00:56.4]} 58.
gxh4+ {[%clk 0:00:21.4]} 58... Kxh4 {[%clk 0:00:54.9]} 59. Kc3 {[%clk
0:00:19.9]} 59... Kh3 {[%clk 0:00:52]} 60. Ra2 {[%clk 0:00:17.4]} 60... Kg2
{[%clk 0:00:50.7]} 61. a5 {[%clk 0:00:16.3]} 61... Kf3 {[%clk 0:00:48.8]} 62.
Kc4 {[%clk 0:00:14.6]} 62... Ra6 {[%clk 0:00:43.3]} 63. Kb5 {[%clk 0:00:14.2]}
63... Ra8 {[%clk 0:00:40.3]} 64. Kb6 {[%clk 0:00:13.9]} 64... Rh8 {[%clk
0:00:35.1]} 65. a6 {[%clk 0:00:13]} 65... Rh6+ {[%clk 0:00:33.5]} 66. Kb7 {[%clk
0:00:11.3]} 66... Rh7+ {[%clk 0:00:32.2]} 67. Kc6 {[%clk 0:00:10.1]} 67... Rh6+
{[%clk 0:00:31.2]} 68. Kd5 {[%clk 0:00:09.9]} 68... Rh5+ {[%clk 0:00:30.6]} 69.
Ke6 {[%clk 0:00:07.8]} 69... Rh7 {[%clk 0:00:29.6]} 70. Kf5 {[%clk 0:00:07.7]}
70... Ra7 {[%clk 0:00:27.8]} 71. Ke6 {[%clk 0:00:06.4]} 71... Rh7 {[%clk
0:00:23.4]} 72. Kd5 {[%clk 0:00:06.3]} 72... Rh5+ {[%clk 0:00:22]} 73. Kc6
{[%clk 0:00:06.2]} 73... Rh6+ {[%clk 0:00:21.5]} 74. Kb7 {[%clk 0:00:05.9]}
74... Rh7+ {[%clk 0:00:21.2]} 75. Kb6 {[%clk 0:00:05.1]} 75... Rh6+ {[%clk
0:00:20.3]} 76. Ka5 {[%clk 0:00:05]} 76... Rg6 {[%clk 0:00:16.5]} 77. Kb4 {[%clk
0:00:04.9]} 77... Rg5 {[%clk 0:00:15.8]} 78. Kc3 {[%clk 0:00:04.8]} 78... Rg6
{[%clk 0:00:15.1]} 79. Kc2 {[%clk 0:00:04.7]} 79... Rxa6 {[%clk 0:00:14.4]} 80.
Kc3 {[%clk 0:00:04.6]} 80... Rxa2 {[%clk 0:00:13.5]} 81. Kd4 {[%clk 0:00:04.5]}
81... Rb2 {[%clk 0:00:13.4]} 82. Ke5 {[%clk 0:00:04.1]} 82... Rxf2 {[%clk
0:00:11.6]} 83. Kf5 {[%clk 0:00:04]} 83... g3 {[%clk 0:00:11.2]} 84. Ke5 {[%clk
0:00:03.9]} 84... g2 {[%clk 0:00:11.1]} 85. Kf5 {[%clk 0:00:03.8]} 85... g1=Q
{[%clk 0:00:10.6]} 86. Ke5 {[%clk 0:00:03.7]} 86... Qg4 {[%clk 0:00:10.2]} 87.
Kd6 {[%clk 0:00:02.6]} 87... Qe4 {[%clk 0:00:10.1]} 88. Kc7 {[%clk 0:00:02.4]}
88... Rd2 {[%clk 0:00:10]} 89. Kb8 {[%clk 0:00:01.8]} 89... Qc2 {[%clk
0:00:09.9]} 0-1

[Event "Live Chess"]
[Site "Chess.com"]
[Date "2023.05.20"]
[Round "-"]
[White "ZackirtyChess"]
[Black "Bob2pen"]
[Result "0-1"]
[WhiteElo "1150"]
[BlackElo "1830"]
[TimeControl "300"]
[EndTime "9:46:16 PDT"]
[Termination "Bob2pen won by checkmate"]

1. d4 {[%clk 0:04:58.9]} 1... Nf6 {[%clk 0:04:57]} 2. c4 {[%clk 0:04:58.2]} 2...
c5 {[%clk 0:04:55.7]} 3. Nc3 {[%clk 0:04:54.6]} 3... g6 {[%clk 0:04:53]} 4. Bg5
{[%clk 0:04:49.7]} 4... Bg7 {[%clk 0:04:51.5]} 5. dxc5 {[%clk 0:04:42.9]} 5...
Na6 {[%clk 0:04:47.7]} 6. e4 {[%clk 0:04:36.2]} 6... Nxc5 {[%clk 0:04:42.9]} 7.
e5 {[%clk 0:04:33.6]} 7... Nfe4 {[%clk 0:04:38.9]} 8. Nxe4 {[%clk 0:04:31.5]}
8... Nxe4 {[%clk 0:04:37.5]} 9. Qg4 {[%clk 0:04:26.3]} 9... Qa5+ {[%clk
0:04:28.7]} 10. Kd1 {[%clk 0:04:20.8]} 10... Qxe5 {[%clk 0:04:20.8]} 11. f4
{[%clk 0:04:13.5]} 11... Qd4+ {[%clk 0:04:14.5]} 12. Ke1 {[%clk 0:04:09.4]}
12... Qd2# {[%clk 0:04:12]} 0-1